{"text_format":"3","workbook":"xlsx","n_sheets":5,"sheets":["Instrumentbord","Utgifter og inntekter","Budsjettrapport","Datalister","Category PivotTable"],"not_rendered":{"charts":3,"external_links":1,"defined_names":18,"pivot_tables":2},"read":"whole","date_system":"1900"}

{"sheet":"Instrumentbord","index":0,"n_rows":21,"n_cols":16,"rows_kept":21,"merged":[[5,2,5,3],[8,9,8,10],[9,9,9,10],[10,9,10,10]]}
[]
[null,null,"Halvmånedlig privatbudsjett",{"$nulls":12},"INSTRUMENTBORD"]
[]
[]
[]
[null,null,{"$f":"CHOOSE(Månedsnummer,\"Januar\",\"Februar\",\"Mars\",\"April\",\"Mai\",\"Juni\",\"Juli\",\"August\",\"September\",\"Oktober\",\"November\",\"Desember\")","v":"August"},null,8,{"$nulls":5},2012]
[]
[]
[null,null,"MÅNEDSTOTALER","Månedlig totalsum",{"$nulls":5},"ÅRLIGE TOTALER",null,"Årlig totalsum"]
[null,null,"INNTEKT","Utgifter",{"$f":"SUMIF(Utgifter[DATO],\"<=\"&DatoMånedSlutt,Utgifter[BELØP])-SUMIF(Utgifter[DATO],\"<\"&DatoMånedStart,Utgifter[BELØP])","v":{"v":0,"d":"kr 0"}},{"$nulls":4},"INNTEKT",null,"Utgifter",{"$f":"SUM(IF(YEAR(Utgifter[DATO])=K6,Utgifter[BELØP]))","v":{"v":10242,"d":"kr 10,242"}}]
[null,null,"UTGIFTER","Inntekt",{"$f":"SUMIF(Inntekt[DATO],\"<=\"&DatoMånedSlutt,Inntekt[BELØP])-SUMIF(Inntekt[DATO],\"<\"&DatoMånedStart,Inntekt[BELØP])","v":{"v":0,"d":"kr 0"}},{"$nulls":4},"UTGIFTER",null,"Inntekt",{"$f":"SUM(IF(YEAR(Inntekt[DATO])=K6,Inntekt[BELØP]))","v":{"v":12700,"d":"kr 12,700"}}]
[]
[]
[]
[]
[]
[{"$nulls":3},"JANUAR","FEBRUAR","MARS","APRIL","MAI","JUNI","JULI","AUGUST","SEPTEMBER","OKTOBER","NOVEMBER","DESEMBER"]
[null,null,"Inntekt 1-15",{"$f":"SUMIFS(Inntekt[BELØP],Inntekt[BESKRIVELSE],\"<=\"&DtMidten,Inntekt[BESKRIVELSE],\">=\"&DtStart)","v":{"v":0,"d":"kr 0.00"}},{"$f":"SUMIFS(Inntekt[BELØP],Inntekt[BESKRIVELSE],\"<=\"&DtMidten,Inntekt[BESKRIVELSE],\">=\"&DtStart)","v":{"v":0,"d":"kr 0.00"}},{"$f":"SUMIFS(Inntekt[BELØP],Inntekt[BESKRIVELSE],\"<=\"&DtMidten,Inntekt[BESKRIVELSE],\">=\"&DtStart)","v":{"v":0,"d":"kr 0.00"}},{"$f":"SUMIFS(Inntekt[BELØP],Inntekt[BESKRIVELSE],\"<=\"&DtMidten,Inntekt[BESKRIVELSE],\">=\"&DtStart)","v":{"v":0,"d":"kr 0.00"}},{"$f":"SUMIFS(Inntekt[BELØP],Inntekt[BESKRIVELSE],\"<=\"&DtMidten,Inntekt[BESKRIVELSE],\">=\"&DtStart)","v":{"v":0,"d":"kr 0.00"}},{"$f":"SUMIFS(Inntekt[BELØP],Inntekt[BESKRIVELSE],\"<=\"&DtMidten,Inntekt[BESKRIVELSE],\">=\"&DtStart)","v":{"v":0,"d":"kr 0.00"}},{"$f":"SUMIFS(Inntekt[BELØP],Inntekt[BESKRIVELSE],\"<=\"&DtMidten,Inntekt[BESKRIVELSE],\">=\"&DtStart)","v":{"v":0,"d":"kr 0.00"}},{"$f":"SUMIFS(Inntekt[BELØP],Inntekt[BESKRIVELSE],\"<=\"&DtMidten,Inntekt[BESKRIVELSE],\">=\"&DtStart)","v":{"v":0,"d":"kr 0.00"}},{"$f":"SUMIFS(Inntekt[BELØP],Inntekt[BESKRIVELSE],\"<=\"&DtMidten,Inntekt[BESKRIVELSE],\">=\"&DtStart)","v":{"v":0,"d":"kr 0.00"}},{"$f":"SUMIFS(Inntekt[BELØP],Inntekt[BESKRIVELSE],\"<=\"&DtMidten,Inntekt[BESKRIVELSE],\">=\"&DtStart)","v":{"v":0,"d":"kr 0.00"}},{"$f":"SUMIFS(Inntekt[BELØP],Inntekt[BESKRIVELSE],\"<=\"&DtMidten,Inntekt[BESKRIVELSE],\">=\"&DtStart)","v":{"v":0,"d":"kr 0.00"}},{"$f":"SUMIFS(Inntekt[BELØP],Inntekt[BESKRIVELSE],\"<=\"&DtMidten,Inntekt[BESKRIVELSE],\">=\"&DtStart)","v":{"v":0,"d":"kr 0.00"}}]
[null,null,"Inntekt 16-månedsslutt",{"$f":"SUMIFS(Inntekt[BELØP],Inntekt[BESKRIVELSE],\"<=\"&DtSlutt,Inntekt[BESKRIVELSE],\">=\"&DtMidten+1)","v":{"v":0,"d":"kr 0.00"}},{"$f":"SUMIFS(Inntekt[BELØP],Inntekt[BESKRIVELSE],\"<=\"&DtSlutt,Inntekt[BESKRIVELSE],\">=\"&DtMidten+1)","v":{"v":0,"d":"kr 0.00"}},{"$f":"SUMIFS(Inntekt[BELØP],Inntekt[BESKRIVELSE],\"<=\"&DtSlutt,Inntekt[BESKRIVELSE],\">=\"&DtMidten+1)","v":{"v":0,"d":"kr 0.00"}},{"$f":"SUMIFS(Inntekt[BELØP],Inntekt[BESKRIVELSE],\"<=\"&DtSlutt,Inntekt[BESKRIVELSE],\">=\"&DtMidten+1)","v":{"v":0,"d":"kr 0.00"}},{"$f":"SUMIFS(Inntekt[BELØP],Inntekt[BESKRIVELSE],\"<=\"&DtSlutt,Inntekt[BESKRIVELSE],\">=\"&DtMidten+1)","v":{"v":0,"d":"kr 0.00"}},{"$f":"SUMIFS(Inntekt[BELØP],Inntekt[BESKRIVELSE],\"<=\"&DtSlutt,Inntekt[BESKRIVELSE],\">=\"&DtMidten+1)","v":{"v":0,"d":"kr 0.00"}},{"$f":"SUMIFS(Inntekt[BELØP],Inntekt[BESKRIVELSE],\"<=\"&DtSlutt,Inntekt[BESKRIVELSE],\">=\"&DtMidten+1)","v":{"v":0,"d":"kr 0.00"}},{"$f":"SUMIFS(Inntekt[BELØP],Inntekt[BESKRIVELSE],\"<=\"&DtSlutt,Inntekt[BESKRIVELSE],\">=\"&DtMidten+1)","v":{"v":0,"d":"kr 0.00"}},{"$f":"SUMIFS(Inntekt[BELØP],Inntekt[BESKRIVELSE],\"<=\"&DtSlutt,Inntekt[BESKRIVELSE],\">=\"&DtMidten+1)","v":{"v":0,"d":"kr 0.00"}},{"$f":"SUMIFS(Inntekt[BELØP],Inntekt[BESKRIVELSE],\"<=\"&DtSlutt,Inntekt[BESKRIVELSE],\">=\"&DtMidten+1)","v":{"v":0,"d":"kr 0.00"}},{"$f":"SUMIFS(Inntekt[BELØP],Inntekt[BESKRIVELSE],\"<=\"&DtSlutt,Inntekt[BESKRIVELSE],\">=\"&DtMidten+1)","v":{"v":0,"d":"kr 0.00"}},{"$f":"SUMIFS(Inntekt[BELØP],Inntekt[BESKRIVELSE],\"<=\"&DtSlutt,Inntekt[BESKRIVELSE],\">=\"&DtMidten+1)","v":{"v":0,"d":"kr 0.00"}}]
[null,null,"Utgifter 1-15",{"$f":"SUMIFS(Utgifter[BELØP],Utgifter[DATO],\"<=\"&DtMidten,Utgifter[DATO],\">=\"&DtStart)","v":{"v":0,"d":"kr 0.00"}},{"$f":"SUMIFS(Utgifter[BELØP],Utgifter[DATO],\"<=\"&DtSlutt,Utgifter[DATO],\">=\"&DtStart)","v":{"v":0,"d":"kr 0.00"}},{"$f":"SUMIFS(Utgifter[BELØP],Utgifter[DATO],\"<=\"&DtSlutt,Utgifter[DATO],\">=\"&DtStart)","v":{"v":0,"d":"kr 0.00"}},{"$f":"SUMIFS(Utgifter[BELØP],Utgifter[DATO],\"<=\"&DtSlutt,Utgifter[DATO],\">=\"&DtStart)","v":{"v":0,"d":"kr 0.00"}},{"$f":"SUMIFS(Utgifter[BELØP],Utgifter[DATO],\"<=\"&DtSlutt,Utgifter[DATO],\">=\"&DtStart)","v":{"v":0,"d":"kr 0.00"}},{"$f":"SUMIFS(Utgifter[BELØP],Utgifter[DATO],\"<=\"&DtSlutt,Utgifter[DATO],\">=\"&DtStart)","v":{"v":0,"d":"kr 0.00"}},{"$f":"SUMIFS(Utgifter[BELØP],Utgifter[DATO],\"<=\"&DtSlutt,Utgifter[DATO],\">=\"&DtStart)","v":{"v":0,"d":"kr 0.00"}},{"$f":"SUMIFS(Utgifter[BELØP],Utgifter[DATO],\"<=\"&DtSlutt,Utgifter[DATO],\">=\"&DtStart)","v":{"v":1125,"d":"kr 1,125.00"}},{"$f":"SUMIFS(Utgifter[BELØP],Utgifter[DATO],\"<=\"&DtSlutt,Utgifter[DATO],\">=\"&DtStart)","v":{"v":5350,"d":"kr 5,350.00"}},{"$f":"SUMIFS(Utgifter[BELØP],Utgifter[DATO],\"<=\"&DtSlutt,Utgifter[DATO],\">=\"&DtStart)","v":{"v":3667,"d":"kr 3,667.00"}},{"$f":"SUMIFS(Utgifter[BELØP],Utgifter[DATO],\"<=\"&DtSlutt,Utgifter[DATO],\">=\"&DtStart)","v":{"v":0,"d":"kr 0.00"}},{"$f":"SUMIFS(Utgifter[BELØP],Utgifter[DATO],\"<=\"&DtSlutt,Utgifter[DATO],\">=\"&DtStart)","v":{"v":0,"d":"kr 0.00"}}]
[null,null,"Utgifter 16-måndsslutt",{"$f":"SUMIFS(Utgifter[BELØP],Utgifter[DATO],\"<=\"&DtSlutt,Utgifter[DATO],\">=\"&DtMidten+1)","v":{"v":0,"d":"kr 0.00"}},{"$f":"SUMIFS(Utgifter[BELØP],Utgifter[DATO],\"<=\"&DtSlutt,Utgifter[DATO],\">=\"&DtMidten+1)","v":{"v":0,"d":"kr 0.00"}},{"$f":"SUMIFS(Utgifter[BELØP],Utgifter[DATO],\"<=\"&DtSlutt,Utgifter[DATO],\">=\"&DtMidten+1)","v":{"v":0,"d":"kr 0.00"}},{"$f":"SUMIFS(Utgifter[BELØP],Utgifter[DATO],\"<=\"&DtSlutt,Utgifter[DATO],\">=\"&DtMidten+1)","v":{"v":0,"d":"kr 0.00"}},{"$f":"SUMIFS(Utgifter[BELØP],Utgifter[DATO],\"<=\"&DtSlutt,Utgifter[DATO],\">=\"&DtMidten+1)","v":{"v":0,"d":"kr 0.00"}},{"$f":"SUMIFS(Utgifter[BELØP],Utgifter[DATO],\"<=\"&DtSlutt,Utgifter[DATO],\">=\"&DtMidten+1)","v":{"v":0,"d":"kr 0.00"}},{"$f":"SUMIFS(Utgifter[BELØP],Utgifter[DATO],\"<=\"&DtSlutt,Utgifter[DATO],\">=\"&DtMidten+1)","v":{"v":0,"d":"kr 0.00"}},{"$f":"SUMIFS(Utgifter[BELØP],Utgifter[DATO],\"<=\"&DtSlutt,Utgifter[DATO],\">=\"&DtMidten+1)","v":{"v":1125,"d":"kr 1,125.00"}},{"$f":"SUMIFS(Utgifter[BELØP],Utgifter[DATO],\"<=\"&DtSlutt,Utgifter[DATO],\">=\"&DtMidten+1)","v":{"v":5350,"d":"kr 5,350.00"}},{"$f":"SUMIFS(Utgifter[BELØP],Utgifter[DATO],\"<=\"&DtSlutt,Utgifter[DATO],\">=\"&DtMidten+1)","v":{"v":2792,"d":"kr 2,792.00"}},{"$f":"SUMIFS(Utgifter[BELØP],Utgifter[DATO],\"<=\"&DtSlutt,Utgifter[DATO],\">=\"&DtMidten+1)","v":{"v":0,"d":"kr 0.00"}},{"$f":"SUMIFS(Utgifter[BELØP],Utgifter[DATO],\"<=\"&DtSlutt,Utgifter[DATO],\">=\"&DtMidten+1)","v":{"v":0,"d":"kr 0.00"}}]

{"sheet":"Utgifter og inntekter","index":1,"n_rows":40,"n_cols":10,"rows_kept":40}
[]
[null,null,"Halvmånedlig privatbudsjett",{"$nulls":6},"INNTEKTER OG UTGIFTER"]
[]
[]
[]
[null,null,"INNTEKT",{"$nulls":3},"UTGIFTER"]
[]
[null,null,"DATO","BESKRIVELSE","BELØP",null,"DATO","KATEGORI","BESKRIVELSE","BELØP"]
[null,null,{"$f":"NOW()-14","v":"2012-11-20T11:18:20.820"},"Davids lønn",{"v":1300,"d":"kr 1,300.00"},null,{"$f":"NOW()-7","v":"2012-11-27T11:18:20.820"},"Husholdning","Lån",{"v":1000,"d":"kr 1,000.00"}]
[null,null,{"$f":"NOW()-14","v":"2012-11-20T11:18:20.820"},"Pats lønn",{"v":1300,"d":"kr 1,300.00"},null,{"$f":"NOW()-7","v":"2012-11-27T11:18:20.820"},"Husholdning","Strøm",{"v":100,"d":"kr 100.00"}]
[null,null,{"$f":"NOW()-28","v":"2012-11-06T11:18:20.820"},"Davids lønn",{"v":1500,"d":"kr 1,500.00"},null,"2012-11-27T11:18:20.820","Husholdning","Vann/avløp",{"v":50,"d":"kr 50.00"}]
[null,null,"2012-11-06T11:18:20.820","Pats lønn",{"v":1600,"d":"kr 1,600.00"},null,"2012-11-27T11:18:20.820","Husholdning","Avfall",{"v":25,"d":"kr 25.00"}]
[null,null,{"$f":"NOW()-42","v":"2012-10-23T11:18:20.820"},"Davids lønn",{"v":1300,"d":"kr 1,300.00"},null,"2012-11-27T11:18:20.820","Husholdning","Mobiltelefon",{"v":100,"d":"kr 100.00"}]
[null,null,"2012-10-23T11:18:20.820","Pats lønn",{"v":1300,"d":"kr 1,300.00"},null,"2012-11-27T11:18:20.820","Husholdning","Fasttelefon",{"v":30,"d":"kr 30.00"}]
[null,null,{"$f":"NOW()-56","v":"2012-10-09T11:18:20.820"},"Davids lønn",{"v":1500,"d":"kr 1,500.00"},null,"2012-11-27T11:18:20.820","Husholdning","Internett",{"v":50,"d":"kr 50.00"}]
[null,null,"2012-10-09T11:18:20.820","Pats lønn",{"v":1600,"d":"kr 1,600.00"},null,"2012-11-27T11:18:20.820","Husholdning","TV",{"v":50,"d":"kr 50.00"}]
[null,null,{"$f":"NOW()-70","v":"2012-09-25T11:18:20.820"},"Davids lønn",{"v":1300,"d":"kr 1,300.00"},null,"2012-11-27T11:18:20.820","Husholdning","Vedlikehold/reparasjoner",{"v":25,"d":"kr 25.00"}]
[{"$nulls":6},{"$f":"NOW()-8","v":"2012-11-26T11:18:20.820"},"Husholdning","Kredittkort 1 ",{"v":100,"d":"kr 100.00"}]
[{"$nulls":6},{"$f":"NOW()-9","v":"2012-11-25T11:18:20.820"},"Underholdning","Filmer",{"v":37,"d":"kr 37.00"}]
[{"$nulls":6},{"$f":"NOW()-10","v":"2012-11-24T11:18:20.820"},"Mat","Dagligvarer",{"v":350,"d":"kr 350.00"}]
[{"$nulls":6},{"$f":"NOW()-11","v":"2012-11-23T11:18:20.820"},"Mat","Restaurant",{"v":75,"d":"kr 75.00"}]
[{"$nulls":6},{"$f":"NOW()-12","v":"2012-11-22T11:18:20.820"},"Barn","Lunsjpenger",{"v":150,"d":"kr 150.00"}]
[{"$nulls":6},{"$f":"NOW()-13","v":"2012-11-21T11:18:20.820"},"Investeringskontoer","Sparing",{"v":250,"d":"kr 250.00"}]
[{"$nulls":6},{"$f":"NOW()-14","v":"2012-11-20T11:18:20.820"},"Investeringskontoer","Investeringskonto",{"v":250,"d":"kr 250.00"}]
[{"$nulls":6},{"$f":"NOW()-15","v":"2012-11-19T11:18:20.820"},"Personlig","Treningssenter",{"v":100,"d":"kr 100.00"}]
[{"$nulls":6},{"$f":"NOW()-16","v":"2012-11-18T11:18:20.820"},"Kjæledyr","Mat",{"v":50,"d":"kr 50.00"}]
[{"$nulls":6},{"$f":"NOW()-20","v":"2012-11-14T11:18:20.820"},"Kjæledyr","Frisør",{"v":50,"d":"kr 50.00"}]
[{"$nulls":6},{"$f":"NOW()-20","v":"2012-11-14T11:18:20.820"},"Kjæledyr","Annet",{"v":50,"d":"kr 50.00"}]
[{"$nulls":6},{"$f":"NOW()-25","v":"2012-11-09T11:18:20.820"},"Transport","Betaling Bil 1 ",{"v":300,"d":"kr 300.00"}]
[{"$nulls":6},{"$f":"NOW()-25","v":"2012-11-09T11:18:20.820"},"Transport","Betaling Bil 2 ",{"v":350,"d":"kr 350.00"}]
[{"$nulls":6},{"$f":"NOW()-25","v":"2012-11-09T11:18:20.820"},"Transport","Bilforsikring",{"v":50,"d":"kr 50.00"}]
[{"$nulls":6},{"$f":"NOW()-30","v":"2012-11-04T11:18:20.820"},"Transport","Drivstoff",{"v":50,"d":"kr 50.00"}]
[{"$nulls":6},{"$f":"NOW()-31","v":"2012-11-03T11:18:20.820"},"Transport","Drivstoff",{"v":25,"d":"kr 25.00"}]
[{"$nulls":6},{"$f":"NOW()-42","v":"2012-10-23T11:18:20.820"},"Transport","Vedlikehold/reparasjoner",{"v":150,"d":"kr 150.00"}]
[{"$nulls":6},{"$f":"NOW()-45","v":"2012-10-20T11:18:20.820"},"Husholdning","Lån",{"v":5000,"d":"kr 5,000.00"}]
[{"$nulls":6},{"$f":"NOW()-50","v":"2012-10-15T11:18:20.820"},"Husholdning","Materiell",{"v":200,"d":"kr 200.00"}]
[{"$nulls":6},{"$f":"NOW()-65","v":"2012-09-30T11:18:20.820"},"Husholdning","Fasttelefon",{"v":100,"d":"kr 100.00"}]
[{"$nulls":6},{"$f":"NOW()-70","v":"2012-09-25T11:18:20.820"},"Husholdning","Avfall",{"v":50,"d":"kr 50.00"}]
[{"$nulls":6},{"$f":"NOW()-75","v":"2012-09-20T11:18:20.820"},"Husholdning","Lån",{"v":1000,"d":"kr 1,000.00"}]
[{"$nulls":6},{"$f":"NOW()-78","v":"2012-09-17T11:18:20.820"},"Underholdning","Filmer",{"v":75,"d":"kr 75.00"}]

{"sheet":"Budsjettrapport","index":2,"n_rows":41,"n_cols":8,"rows_kept":41}
[]
[null,null,"Halvmånedlig privatbudsjett",{"$nulls":4},"BUDSJETTRAPPORT"]
{"$rows_empty":10}
[null,null,"UTGIFTER",null,null,"KATEGORITOTALER"]
[]
[null,null,"BESKRIVELSE","BELØP "]
[null,null,"Annet",{"v":50,"d":"kr 50"}]
[null,null,"Avfall",{"v":75,"d":"kr 75"}]
[null,null,"Betaling Bil 1 ",{"v":300,"d":"kr 300"}]
[null,null,"Betaling Bil 2 ",{"v":350,"d":"kr 350"}]
[null,null,"Bilforsikring",{"v":50,"d":"kr 50"}]
[null,null,"Dagligvarer",{"v":350,"d":"kr 350"}]
[null,null,"Drivstoff",{"v":75,"d":"kr 75"}]
[null,null,"Fasttelefon",{"v":130,"d":"kr 130"}]
[null,null,"Filmer",{"v":112,"d":"kr 112"}]
[null,null,"Frisør",{"v":50,"d":"kr 50"}]
[null,null,"Internett",{"v":50,"d":"kr 50"}]
[null,null,"Investeringskonto",{"v":250,"d":"kr 250"}]
[null,null,"Kredittkort 1 ",{"v":100,"d":"kr 100"}]
[null,null,"Lunsjpenger",{"v":150,"d":"kr 150"}]
[null,null,"Lån",{"v":7000,"d":"kr 7,000"}]
[null,null,"Mat",{"v":50,"d":"kr 50"}]
[null,null,"Materiell",{"v":200,"d":"kr 200"}]
[null,null,"Mobiltelefon",{"v":100,"d":"kr 100"}]
[null,null,"Restaurant",{"v":75,"d":"kr 75"}]
[null,null,"Sparing",{"v":250,"d":"kr 250"}]
[null,null,"Strøm",{"v":100,"d":"kr 100"}]
[null,null,"Treningssenter",{"v":100,"d":"kr 100"}]
[null,null,"TV",{"v":50,"d":"kr 50"}]
[null,null,"Vann/avløp",{"v":50,"d":"kr 50"}]
[null,null,"Vedlikehold/reparasjoner",{"v":175,"d":"kr 175"}]
[null,null,"TOTALT",{"v":10242,"d":"kr 10,242"}]

{"sheet":"Datalister","index":3,"n_rows":20,"n_cols":14,"rows_kept":20}
[]
[null,null,"Halvmånedlig privatbudsjett",{"$nulls":10},"DATALISTER"]
[]
[]
[null,null,"OPPSETT         Kategori-dataene nedenfor fylelr ut rullegardinlistene i Utgifter-tabellen på arket Utgifter og inntekter. Endre kategorinavnene eller beskrivelsene nedenfor hver kategori for å oppdatere listene."]
[]
[null,null,"Husholdning","Underholdning","Mat","Gaver","Barn","Investeringskontoer","Sykeforsikring","Annet","Personlig","Kjæledyr","Skatter/avgifter","Transport"]
[null,null,"Lån","Filmer","Dagligvarer","Veldedighet 1","Klær","IRA","Lege/klinikk","Annet","Klær","Mat","Kommunal","Betaling Bil 1 "]
[null,null,"Strøm","Videoer/filmer","Restaurant","Veldedighet 2","Leker/spill","Sparing","Forsikring","Organisasjonsmedlemsskap","Hår/negler","Materiell","Statlig","Betaling Bil 2 "]
[null,null,"Vann/avløp","Musikk",null,"Veldedighet 3","Lunsjpenger","Sjekkonto",null,null,"Renseri","Sykeforsikring","Lokalt","Bilforsikring"]
[null,null,"Avfall","Konserter/teater",null,"Gaver","Avgifter","Pensjon",null,null,"Treningssenter","Frisør","Annet","Lisensiering/registrering"]
[null,null,"Mobiltelefon","Sportsarrangementer",null,null,"Skolemateriell","Investeringskonto",null,null,"Shopping","Annet","Advokat","Drivstoff"]
[null,null,"Fasttelefon","Annet",null,null,"Annet","Høyskole",null,null,"Annet",null,"Underhold av barn","Vedlikehold/reparasjoner"]
[null,null,"Internett",{"$nulls":3},"Renseri","Lås",{"$nulls":4},"Bidrag","Offentlig transport"]
[null,null,"TV",{"$nulls":4},"Studielån",{"$nulls":4},"Annet"]
[null,null,"Vedlikehold/reparasjoner"]
[null,null,"Materiell"]
[null,null,"Kabel/Internett/telefon"]
[null,null,"Kredittkort 1 "]
[null,null,"Kredittkort 2 "]

{"sheet":"Category PivotTable","index":4,"n_rows":16,"n_cols":14,"rows_kept":16,"hidden":true}
[]
[null,null,"Halvmånedlig privatbudsjett",{"$nulls":10},"KATEGORI-PIVOT"]
[]
[]
[null,"Denne pivottabellen er datakilden for pivotdiagrammet Kategoritotaler i budsjettrapporten. "]
[]
[null,null,"Radetiketter","Summer av BELØP"]
[null,null,"Barn",150]
[null,null,"Husholdning",7880]
[null,null,"Investeringskontoer",500]
[null,null,"Kjæledyr",150]
[null,null,"Mat",425]
[null,null,"Personlig",100]
[null,null,"Transport",925]
[null,null,"Underholdning",112]
[null,null,"Totalsum",10242]